Workbook

Sheet Munka1
A1: fordulószámod: | B1: 300 | D1: forduló | E1: fegyverszaki | F1: köri fejlődés max | G1: kör végi %: | H1: KAR_LAPON: | I1: forduló
A2: fegyverszakértelmed: | B2: 50 | D2: =B1 -> 300 | E2: =B2 -> 50 | F2: =IF(E2>149,0,IF(E2>139,0.01,IF(E2>129,0.02,IF(E2>119,0.03,IF(E2>109,0.04,IF(E2>99,0.05,IF(E2>89,0.06,IF(E2>79,0.07,IF(E2>69,0.08,IF(E2>59,0.09,IF(E2>49,0.1,1))))))))))) -> 0.1 | G2: 0.1 | H2: =IF(G2>=1,"*"&E2,E2&" ("&ROUND(G2*100,0)&" %)") -> 50 (10 %) | I2: =D2 -> 300
D3: =D2+1 -> 301 | E3: =IF(G3<G2,E2+1,E2) -> 50 | F3: =IF(E2>149,0,IF(E2>139,0.01,IF(E2>129,0.02,IF(E2>119,0.03,IF(E2>109,0.04,IF(E2>99,0.05,IF(E2>89,0.06,IF(E2>79,0.07,IF(E2>69,0.08,IF(E2>59,0.09,IF(E2>49,0.1,1))))))))))) -> 0.1 | G3: =IF(G2+F3>1,G2+F3-1,G2+F3) -> 0.2 | H3: =IF(G3>=1,"*"&E3,E3&" ("&ROUND(G3*100,0)&" %)") -> 50 (20 %) | I3: =D3 -> 301
A4: 60. szint elérésének fordulószáma: | B4: =IF(B2>60,B1,VLOOKUP(60,E:I,5,0)) -> 400 | D4: =D3+1 -> 302 | E4: 50 | F4: =IF(E3>149,0,IF(E3>139,0.01,IF(E3>129,0.02,IF(E3>119,0.03,IF(E3>109,0.04,IF(E3>99,0.05,IF(E3>89,0.06,IF(E3>79,0.07,IF(E3>69,0.08,IF(E3>59,0.09,IF(E3>49,0.1,1))))))))))) -> 0.1 | G4: 0.3 | H4: 50 (30 %) | I4: 302
A5: 70. szint elérésének fordulószáma: | B5: =IF(B2>70,B1,VLOOKUP(70,E:I,5,0)) -> 511 | D5: 303 | E5: 50 | F5: 0.1 | G5: 0.4 | H5: 50 (40 %) | I5: 303
A6: 80. szint elérésének fordulószáma: | B6: =IF(B2>80,B1,VLOOKUP(80,E:I,5,0)) -> 635 | D6: 304 | E6: 50 | F6: 0.1 | G6: 0.5 | H6: 50 (50 %) | I6: 304
A7: 90. szint elérésének fordulószáma: | B7: =IF(B2>90,B1,VLOOKUP(90,E:I,5,0)) -> 778 | D7: 305 | E7: 50 | F7: 0.1 | G7: 0.6 | H7: 50 (60 %) | I7: 305
A8: 100. szint elérésének fordulószáma: | B8: =IF(B2>100,B1,VLOOKUP(100,E:I,5,0)) -> 945 | D8: 306 | E8: 50 | F8: 0.1 | G8: 0.7 | H8: 50 (70 %) | I8: 306
A9: 110. szint elérésének fordulószáma: | B9: =IF(B2>110,B1,VLOOKUP(110,E:I,5,0)) -> 1145 | D9: 307 | E9: 50 | F9: 0.1 | G9: 0.8 | H9: 50 (80 %) | I9: 307
A10: 120. szint elérésének fordulószáma: | B10: =IF(B2>120,B1,VLOOKUP(120,E:I,5,0)) -> 1394 | D10: 308 | E10: 50 | F10: 0.1 | G10: 0.9 | H10: 50 (90 %) | I10: 308
A11: 130. szint elérésének fordulószáma: | B11: =IF(B2>130,B1,VLOOKUP(130,E:I,5,0)) -> 1728 | D11: 309 | E11: =IF(G11<G10,E10+1,E10) -> 50 | F11: 0.1 | G11: =IF(G10+F11>1,G10+F11-1,G10+F11) -> 1 | H11: *50 | I11: 309
A12: 140. szint elérésének fordulószáma: | B12: =IF(B2>140,B1,VLOOKUP(140,E:I,5,0)) -> 2227 | D12: 310 | E12: =IF(G12<G11,E11+1,E11) -> 51 | F12: 0.1 | G12: =IF(G11+F12>1,G11+F12-1,G11+F12) -> 0.1 | H12: 51 (10 %) | I12: 310
A13: 150. szint elérésének fordulószáma: | B13: =IF(B2>150,B1,VLOOKUP(150,E:I,5,0)) -> 3227 | D13: 311 | E13: =IF(G13<G12,E12+1,E12) -> 51 | F13: 0.1 | G13: 0.2 | H13: 51 (20 %) | I13: 311
D14: 312 | E14: 51 | F14: 0.1 | G14: 0.3 | H14: 51 (30 %) | I14: 312
D15: 313 | E15: 51 | F15: 0.1 | G15: 0.4 | H15: 51 (40 %) | I15: 313
D16: 314 | E16: 51 | F16: 0.1 | G16: 0.5 | H16: 51 (50 %) | I16: 314
D17: 315 | E17: 51 | F17: 0.1 | G17: 0.6 | H17: 51 (60 %) | I17: 315
D18: 316 | E18: 51 | F18: 0.1 | G18: 0.7 | H18: 51 (70 %) | I18: 316
D19: 317 | E19: 51 | F19: 0.1 | G19: 0.8 | H19: 51 (80 %) | I19: 317
D20: 318 | E20: 51 | F20: 0.1 | G20: 0.9 | H20: 51 (90 %) | I20: 318
D21: 319 | E21: 51 | F21: 0.1 | G21: 1 | H21: *51 | I21: 319
D22: 320 | E22: 52 | F22: 0.1 | G22: 0.1 | H22: 52 (10 %) | I22: 320
D23: 321 | E23: 52 | F23: 0.1 | G23: 0.2 | H23: 52 (20 %) | I23: 321
D24: 322 | E24: 52 | F24: 0.1 | G24: 0.3 | H24: 52 (30 %) | I24: 322
D25: 323 | E25: 52 | F25: 0.1 | G25: 0.4 | H25: 52 (40 %) | I25: 323
D26: 324 | E26: 52 | F26: 0.1 | G26: 0.5 | H26: 52 (50 %) | I26: 324
D27: 325 | E27: 52 | F27: 0.1 | G27: 0.6 | H27: 52 (60 %) | I27: 325
D28: 326 | E28: 52 | F28: 0.1 | G28: 0.7 | H28: 52 (70 %) | I28: 326
D29: 327 | E29: 52 | F29: 0.1 | G29: 0.8 | H29: 52 (80 %) | I29: 327
D30: 328 | E30: 52 | F30: 0.1 | G30: 0.9 | H30: 52 (90 %) | I30: 328
D31: 329 | E31: 52 | F31: 0.1 | G31: 1 | H31: *52 | I31: 329
D32: 330 | E32: 53 | F32: 0.1 | G32: 0.1 | H32: 53 (10 %) | I32: 330
D33: 331 | E33: 53 | F33: 0.1 | G33: 0.2 | H33: 53 (20 %) | I33: 331
D34: 332 | E34: 53 | F34: 0.1 | G34: 0.3 | H34: 53 (30 %) | I34: 332
D35: 333 | E35: 53 | F35: 0.1 | G35: 0.4 | H35: 53 (40 %) | I35: 333
D36: 334 | E36: 53 | F36: 0.1 | G36: 0.5 | H36: 53 (50 %) | I36: 334
D37: 335 | E37: 53 | F37: 0.1 | G37: 0.6 | H37: 53 (60 %) | I37: 335
D38: 336 | E38: 53 | F38: 0.1 | G38: 0.7 | H38: 53 (70 %) | I38: 336
D39: 337 | E39: 53 | F39: 0.1 | G39: 0.8 | H39: 53 (80 %) | I39: 337
D40: 338 | E40: 53 | F40: 0.1 | G40: 0.9 | H40: 53 (90 %) | I40: 338
D41: 339 | E41: 53 | F41: 0.1 | G41: 1 | H41: *53 | I41: 339
D42: 340 | E42: 54 | F42: 0.1 | G42: 0.1 | H42: 54 (10 %) | I42: 340
D43: 341 | E43: 54 | F43: 0.1 | G43: 0.2 | H43: 54 (20 %) | I43: 341
D44: 342 | E44: 54 | F44: 0.1 | G44: 0.3 | H44: 54 (30 %) | I44: 342
D45: 343 | E45: 54 | F45: 0.1 | G45: 0.4 | H45: 54 (40 %) | I45: 343
D46: 344 | E46: 54 | F46: 0.1 | G46: 0.5 | H46: 54 (50 %) | I46: 344
D47: 345 | E47: 54 | F47: 0.1 | G47: 0.6 | H47: 54 (60 %) | I47: 345
D48: 346 | E48: 54 | F48: 0.1 | G48: 0.7 | H48: 54 (70 %) | I48: 346
D49: 347 | E49: 54 | F49: 0.1 | G49: 0.8 | H49: 54 (80 %) | I49: 347
D50: 348 | E50: 54 | F50: 0.1 | G50: 0.9 | H50: 54 (90 %) | I50: 348
D51: 349 | E51: 54 | F51: 0.1 | G51: 1 | H51: *54 | I51: 349
D52: 350 | E52: 55 | F52: 0.1 | G52: 0.1 | H52: 55 (10 %) | I52: 350
D53: 351 | E53: 55 | F53: 0.1 | G53: 0.2 | H53: 55 (20 %) | I53: 351
D54: 352 | E54: 55 | F54: 0.1 | G54: 0.3 | H54: 55 (30 %) | I54: 352
D55: 353 | E55: 55 | F55: 0.1 | G55: 0.4 | H55: 55 (40 %) | I55: 353
D56: 354 | E56: 55 | F56: 0.1 | G56: 0.5 | H56: 55 (50 %) | I56: 354
D57: 355 | E57: 55 | F57: 0.1 | G57: 0.6 | H57: 55 (60 %) | I57: 355
D58: 356 | E58: 55 | F58: 0.1 | G58: 0.7 | H58: 55 (70 %) | I58: 356
D59: 357 | E59: 55 | F59: 0.1 | G59: 0.8 | H59: 55 (80 %) | I59: 357
D60: 358 | E60: 55 | F60: 0.1 | G60: 0.9 | H60: 55 (90 %) | I60: 358
D61: 359 | E61: 55 | F61: 0.1 | G61: 1 | H61: *55 | I61: 359
D62: 360 | E62: 56 | F62: 0.1 | G62: 0.1 | H62: 56 (10 %) | I62: 360
D63: 361 | E63: 56 | F63: 0.1 | G63: 0.2 | H63: 56 (20 %) | I63: 361
D64: 362 | E64: 56 | F64: 0.1 | G64: 0.3 | H64: 56 (30 %) | I64: 362
D65: 363 | E65: 56 | F65: 0.1 | G65: 0.4 | H65: 56 (40 %) | I65: 363
D66: 364 | E66: 56 | F66: 0.1 | G66: 0.5 | H66: 56 (50 %) | I66: 364
D67: 365 | E67: 56 | F67: 0.1 | G67: 0.6 | H67: =IF(G67>=1,"*"&E67,E67&" ("&ROUND(G67*100,0)&" %)") -> 56 (60 %) | I67: =D67 -> 365
D68: =D67+1 -> 366 | E68: 56 | F68: =IF(E67>149,0,IF(E67>139,0.01,IF(E67>129,0.02,IF(E67>119,0.03,IF(E67>109,0.04,IF(E67>99,0.05,IF(E67>89,0.06,IF(E67>79,0.07,IF(E67>69,0.08,IF(E67>59,0.09,IF(E67>49,0.1,1))))))))))) -> 0.1 | G68: 0.7 | H68: 56 (70 %) | I68: 366
D69: 367 | E69: 56 | F69: 0.1 | G69: 0.8 | H69: 56 (80 %) | I69: 367
D70: 368 | E70: 56 | F70: 0.1 | G70: 0.9 | H70: 56 (90 %) | I70: 368
D71: 369 | E71: 56 | F71: 0.1 | G71: 1 | H71: *56 | I71: 369
D72: 370 | E72: 57 | F72: 0.1 | G72: 0.1 | H72: 57 (10 %) | I72: 370
D73: 371 | E73: 57 | F73: 0.1 | G73: 0.2 | H73: 57 (20 %) | I73: 371
D74: 372 | E74: 57 | F74: 0.1 | G74: 0.3 | H74: 57 (30 %) | I74: 372
D75: 373 | E75: 57 | F75: 0.1 | G75: 0.4 | H75: 57 (40 %) | I75: 373
D76: 374 | E76: =IF(G76<G75,E75+1,E75) -> 57 | F76: 0.1 | G76: =IF(G75+F76>1,G75+F76-1,G75+F76) -> 0.5 | H76: 57 (50 %) | I76: 374
D77: 375 | E77: 57 | F77: 0.1 | G77: 0.6 | H77: 57 (60 %) | I77: 375
D78: 376 | E78: 57 | F78: 0.1 | G78: 0.7 | H78: 57 (70 %) | I78: 376
D79: 377 | E79: 57 | F79: 0.1 | G79: 0.8 | H79: 57 (80 %) | I79: 377
D80: 378 | E80: 57 | F80: 0.1 | G80: 0.9 | H80: 57 (90 %) | I80: 378
D81: 379 | E81: 57 | F81: 0.1 | G81: 1 | H81: *57 | I81: 379
D82: 380 | E82: 58 | F82: 0.1 | G82: 0.1 | H82: 58 (10 %) | I82: 380
D83: 381 | E83: 58 | F83: 0.1 | G83: 0.2 | H83: 58 (20 %) | I83: 381
D84: 382 | E84: 58 | F84: 0.1 | G84: 0.3 | H84: 58 (30 %) | I84: 382
D85: 383 | E85: 58 | F85: 0.1 | G85: 0.4 | H85: 58 (40 %) | I85: 383
D86: 384 | E86: 58 | F86: 0.1 | G86: 0.5 | H86: 58 (50 %) | I86: 384
D87: 385 | E87: 58 | F87: 0.1 | G87: 0.6 | H87: 58 (60 %) | I87: 385
D88: 386 | E88: 58 | F88: 0.1 | G88: 0.7 | H88: 58 (70 %) | I88: 386
D89: 387 | E89: 58 | F89: 0.1 | G89: 0.8 | H89: 58 (80 %) | I89: 387
D90: 388 | E90: 58 | F90: 0.1 | G90: 0.9 | H90: 58 (90 %) | I90: 388
D91: 389 | E91: 58 | F91: 0.1 | G91: 1 | H91: *58 | I91: 389
D92: 390 | E92: 59 | F92: 0.1 | G92: 0.1 | H92: 59 (10 %) | I92: 390
D93: 391 | E93: 59 | F93: 0.1 | G93: 0.2 | H93: 59 (20 %) | I93: 391
D94: 392 | E94: 59 | F94: 0.1 | G94: 0.3 | H94: 59 (30 %) | I94: 392
D95: 393 | E95: 59 | F95: 0.1 | G95: 0.4 | H95: 59 (40 %) | I95: 393
D96: 394 | E96: 59 | F96: 0.1 | G96: 0.5 | H96: 59 (50 %) | I96: 394
D97: 395 | E97: 59 | F97: 0.1 | G97: 0.6 | H97: 59 (60 %) | I97: 395
D98: 396 | E98: 59 | F98: 0.1 | G98: 0.7 | H98: 59 (70 %) | I98: 396
D99: 397 | E99: 59 | F99: 0.1 | G99: 0.8 | H99: 59 (80 %) | I99: 397
D100: 398 | E100: 59 | F100: 0.1 | G100: 0.9 | H100: 59 (90 %) | I100: 398
D101: 399 | E101: 59 | F101: 0.1 | G101: 1 | H101: *59 | I101: 399
D102: 400 | E102: 60 | F102: 0.1 | G102: 0.1 | H102: 60 (10 %) | I102: 400
D103: 401 | E103: 60 | F103: 0.09 | G103: 0.19 | H103: 60 (19 %) | I103: 401
D104: 402 | E104: 60 | F104: 0.09 | G104: 0.28 | H104: 60 (28 %) | I104: 402
D105: 403 | E105: 60 | F105: 0.09 | G105: 0.37 | H105: 60 (37 %) | I105: 403
D106: 404 | E106: 60 | F106: 0.09 | G106: 0.46 | H106: 60 (46 %) | I106: 404
D107: 405 | E107: 60 | F107: 0.09 | G107: 0.55 | H107: 60 (55 %) | I107: 405
D108: 406 | E108: 60 | F108: 0.09 | G108: 0.64 | H108: 60 (64 %) | I108: 406
D109: 407 | E109: 60 | F109: 0.09 | G109: 0.73 | H109: 60 (73 %) | I109: 407
D110: 408 | E110: 60 | F110: 0.09 | G110: 0.82 | H110: 60 (82 %) | I110: 408
D111: 409 | E111: 60 | F111: 0.09 | G111: 0.91 | H111: 60 (91 %) | I111: 409
D112: 410 | E112: 60 | F112: 0.09 | G112: 1 | H112: *60 | I112: 410
D113: 411 | E113: 61 | F113: 0.09 | G113: 0.09 | H113: 61 (9 %) | I113: 411
D114: 412 | E114: 61 | F114: 0.09 | G114: 0.18 | H114: 61 (18 %) | I114: 412
D115: 413 | E115: 61 | F115: 0.09 | G115: 0.27 | H115: 61 (27 %) | I115: 413
D116: 414 | E116: 61 | F116: 0.09 | G116: 0.36 | H116: 61 (36 %) | I116: 414
D117: 415 | E117: 61 | F117: 0.09 | G117: 0.45 | H117: 61 (45 %) | I117: 415
D118: 416 | E118: 61 | F118: 0.09 | G118: 0.54 | H118: 61 (54 %) | I118: 416
D119: 417 | E119: 61 | F119: 0.09 | G119: 0.63 | H119: 61 (63 %) | I119: 417
D120: 418 | E120: 61 | F120: 0.09 | G120: 0.72 | H120: 61 (72 %) | I120: 418
D121: 419 | E121: 61 | F121: 0.09 | G121: 0.81 | H121: 61 (81 %) | I121: 419
D122: 420 | E122: 61 | F122: 0.09 | G122: 0.9 | H122: 61 (90 %) | I122: 420
D123: 421 | E123: 61 | F123: 0.09 | G123: 0.99 | H123: 61 (99 %) | I123: 421
D124: 422 | E124: 62 | F124: 0.09 | G124: 0.08 | H124: 62 (8 %) | I124: 422
D125: 423 | E125: 62 | F125: 0.09 | G125: 0.17 | H125: 62 (17 %) | I125: 423
D126: 424 | E126: 62 | F126: 0.09 | G126: 0.26 | H126: 62 (26 %) | I126: 424
D127: 425 | E127: 62 | F127: 0.09 | G127: 0.35 | H127: 62 (35 %) | I127: 425
D128: 426 | E128: 62 | F128: 0.09 | G128: 0.44 | H128: 62 (44 %) | I128: 426
D129: 427 | E129: 62 | F129: 0.09 | G129: 0.53 | H129: 62 (53 %) | I129: 427
D130: 428 | E130: 62 | F130: 0.09 | G130: 0.62 | H130: 62 (62 %) | I130: 428
D131: 429 | E131: 62 | F131: 0.09 | G131: 0.71 | H131: =IF(G131>=1,"*"&E131,E131&" ("&ROUND(G131*100,0)&" %)") -> 62 (71 %) | I131: =D131 -> 429
D132: =D131+1 -> 430 | E132: 62 | F132: =IF(E131>149,0,IF(E131>139,0.01,IF(E131>129,0.02,IF(E131>119,0.03,IF(E131>109,0.04,IF(E131>99,0.05,IF(E131>89,0.06,IF(E131>79,0.07,IF(E131>69,0.08,IF(E131>59,0.09,IF(E131>49,0.1,1))))))))))) -> 0.09 | G132: 0.8 | H132: 62 (80 %) | I132: 430
D133: 431 | E133: 62 | F133: 0.09 | G133: 0.89 | H133: 62 (89 %) | I133: 431
D134: 432 | E134: 62 | F134: 0.09 | G134: 0.98 | H134: 62 (98 %) | I134: 432
D135: 433 | E135: 63 | F135: 0.09 | G135: 0.07 | H135: 63 (7 %) | I135: 433
D136: 434 | E136: 63 | F136: 0.09 | G136: 0.16 | H136: 63 (16 %) | I136: 434
D137: 435 | E137: 63 | F137: 0.09 | G137: 0.25 | H137: 63 (25 %) | I137: 435
D138: 436 | E138: 63 | F138: 0.09 | G138: 0.34 | H138: 63 (34 %) | I138: 436
D139: 437 | E139: 63 | F139: 0.09 | G139: 0.43 | H139: 63 (43 %) | I139: 437
D140: 438 | E140: =IF(G140<G139,E139+1,E139) -> 63 | F140: 0.09 | G140: =IF(G139+F140>1,G139+F140-1,G139+F140) -> 0.52 | H140: 63 (52 %) | I140: 438
D141: 439 | E141: 63 | F141: 0.09 | G141: 0.61 | H141: 63 (61 %) | I141: 439
D142: 440 | E142: 63 | F142: 0.09 | G142: 0.7 | H142: 63 (70 %) | I142: 440
D143: 441 | E143: 63 | F143: 0.09 | G143: 0.79 | H143: 63 (79 %) | I143: 441
D144: 442 | E144: 63 | F144: 0.09 | G144: 0.88 | H144: 63 (88 %) | I144: 442
D145: 443 | E145: 63 | F145: 0.09 | G145: 0.97 | H145: 63 (97 %) | I145: 443
D146: 444 | E146: 64 | F146: 0.09 | G146: 0.06 | H146: 64 (6 %) | I146: 444
D147: 445 | E147: 64 | F147: 0.09 | G147: 0.15 | H147: 64 (15 %) | I147: 445
D148: 446 | E148: 64 | F148: 0.09 | G148: 0.24 | H148: 64 (24 %) | I148: 446
D149: 447 | E149: 64 | F149: 0.09 | G149: 0.33 | H149: 64 (33 %) | I149: 447
D150: 448 | E150: 64 | F150: 0.09 | G150: 0.42 | H150: 64 (42 %) | I150: 448
D151: 449 | E151: 64 | F151: 0.09 | G151: 0.51 | H151: 64 (51 %) | I151: 449
D152: 450 | E152: 64 | F152: 0.09 | G152: 0.6 | H152: 64 (60 %) | I152: 450
D153: 451 | E153: 64 | F153: 0.09 | G153: 0.69 | H153: 64 (69 %) | I153: 451
D154: 452 | E154: 64 | F154: 0.09 | G154: 0.78 | H154: 64 (78 %) | I154: 452
D155: 453 | E155: 64 | F155: 0.09 | G155: 0.87 | H155: 64 (87 %) | I155: 453
D156: 454 | E156: 64 | F156: 0.09 | G156: 0.96 | H156: 64 (96 %) | I156: 454
D157: 455 | E157: 65 | F157: 0.09 | G157: 0.05 | H157: 65 (5 %) | I157: 455
D158: 456 | E158: 65 | F158: 0.09 | G158: 0.14 | H158: 65 (14 %) | I158: 456
D159: 457 | E159: 65 | F159: 0.09 | G159: 0.23 | H159: 65 (23 %) | I159: 457
D160: 458 | E160: 65 | F160: 0.09 | G160: 0.32 | H160: 65 (32 %) | I160: 458
D161: 459 | E161: 65 | F161: 0.09 | G161: 0.41 | H161: 65 (41 %) | I161: 459
D162: 460 | E162: 65 | F162: 0.09 | G162: 0.5 | H162: 65 (50 %) | I162: 460
D163: 461 | E163: 65 | F163: 0.09 | G163: 0.59 | H163: 65 (59 %) | I163: 461
D164: 462 | E164: 65 | F164: 0.09 | G164: 0.68 | H164: 65 (68 %) | I164: 462
D165: 463 | E165: 65 | F165: 0.09 | G165: 0.77 | H165: 65 (77 %) | I165: 463
D166: 464 | E166: 65 | F166: 0.09 | G166: 0.86 | H166: 65 (86 %) | I166: 464
D167: 465 | E167: 65 | F167: 0.09 | G167: 0.95 | H167: 65 (95 %) | I167: 465
D168: 466 | E168: 66 | F168: 0.09 | G168: 0.04 | H168: 66 (4 %) | I168: 466
D169: 467 | E169: 66 | F169: 0.09 | G169: 0.13 | H169: 66 (13 %) | I169: 467
D170: 468 | E170: 66 | F170: 0.09 | G170: 0.22 | H170: 66 (22 %) | I170: 468
D171: 469 | E171: 66 | F171: 0.09 | G171: 0.31 | H171: 66 (31 %) | I171: 469
D172: 470 | E172: 66 | F172: 0.09 | G172: 0.4 | H172: 66 (40 %) | I172: 470
D173: 471 | E173: 66 | F173: 0.09 | G173: 0.49 | H173: 66 (49 %) | I173: 471
D174: 472 | E174: 66 | F174: 0.09 | G174: 0.58 | H174: 66 (58 %) | I174: 472
D175: 473 | E175: 66 | F175: 0.09 | G175: 0.67 | H175: 66 (67 %) | I175: 473
D176: 474 | E176: 66 | F176: 0.09 | G176: 0.76 | H176: 66 (76 %) | I176: 474
D177: 475 | E177: 66 | F177: 0.09 | G177: 0.85 | H177: 66 (85 %) | I177: 475
D178: 476 | E178: 66 | F178: 0.09 | G178: 0.94 | H178: 66 (94 %) | I178: 476
D179: 477 | E179: 67 | F179: 0.09 | G179: 0.03 | H179: 67 (3 %) | I179: 477
D180: 478 | E180: 67 | F180: 0.09 | G180: 0.12 | H180: 67 (12 %) | I180: 478
D181: 479 | E181: 67 | F181: 0.09 | G181: 0.21 | H181: 67 (21 %) | I181: 479
D182: 480 | E182: 67 | F182: 0.09 | G182: 0.3 | H182: 67 (30 %) | I182: 480
D183: 481 | E183: 67 | F183: 0.09 | G183: 0.39 | H183: 67 (39 %) | I183: 481
D184: 482 | E184: 67 | F184: 0.09 | G184: 0.48 | H184: 67 (48 %) | I184: 482
D185: 483 | E185: 67 | F185: 0.09 | G185: 0.57 | H185: 67 (57 %) | I185: 483
D186: 484 | E186: 67 | F186: 0.09 | G186: 0.66 | H186: 67 (66 %) | I186: 484
D187: 485 | E187: 67 | F187: 0.09 | G187: 0.75 | H187: 67 (75 %) | I187: 485
D188: 486 | E188: 67 | F188: 0.09 | G188: 0.84 | H188: 67 (84 %) | I188: 486
D189: 487 | E189: 67 | F189: 0.09 | G189: 0.93 | H189: 67 (93 %) | I189: 487
D190: 488 | E190: 68 | F190: 0.09 | G190: 0.02 | H190: 68 (2 %) | I190: 488
D191: 489 | E191: 68 | F191: 0.09 | G191: 0.11 | H191: 68 (11 %) | I191: 489
D192: 490 | E192: 68 | F192: 0.09 | G192: 0.2 | H192: 68 (20 %) | I192: 490
D193: 491 | E193: 68 | F193: 0.09 | G193: 0.29 | H193: 68 (29 %) | I193: 491
D194: 492 | E194: 68 | F194: 0.09 | G194: 0.38 | H194: 68 (38 %) | I194: 492
D195: 493 | E195: 68 | F195: 0.09 | G195: 0.47 | H195: =IF(G195>=1,"*"&E195,E195&" ("&ROUND(G195*100,0)&" %)") -> 68 (47 %) | I195: =D195 -> 493
D196: =D195+1 -> 494 | E196: 68 | F196: =IF(E195>149,0,IF(E195>139,0.01,IF(E195>129,0.02,IF(E195>119,0.03,IF(E195>109,0.04,IF(E195>99,0.05,IF(E195>89,0.06,IF(E195>79,0.07,IF(E195>69,0.08,IF(E195>59,0.09,IF(E195>49,0.1,1))))))))))) -> 0.09 | G196: 0.56 | H196: 68 (56 %) | I196: 494
D197: 495 | E197: 68 | F197: 0.09 | G197: 0.65 | H197: 68 (65 %) | I197: 495
D198: 496 | E198: 68 | F198: 0.09 | G198: 0.74 | H198: 68 (74 %) | I198: 496
D199: 497 | E199: 68 | F199: 0.09 | G199: 0.83 | H199: 68 (83 %) | I199: 497
D200: 498 | E200: 68 | F200: 0.09 | G200: 0.92 | H200: 68 (92 %) | I200: 498
... 2729 more rows

Sheet Munka2

Sheet Munka3
